[Event "Titled Tuesday Blitz April 25 Early 2023"]
[White "Grigorov, Grigor"]
[Black "Vestby-Ellingsen, Mads"]
[WhiteFideId "2907313"]
[BlackFideId "1520857"]
[WhiteElo "2510"]
[BlackElo "2246"]
[Result "1-0"]
[Round "03"]
[TimeControl "180+2"]
[Date "2023.04.25"]
[WhiteClock "0:00:13"]
[BlackClock "0:00:02"]

1. d4 {[%clk 0:03:00]}  d5 {[%clk 0:02:59]} 2. c4 {[%clk 0:03:00]}  e6 {[%clk 0:02:59]} 3. Nf3 {[%clk 0:03:00]}  Bb4+ {[%clk 0:02:58]} 4. Bd2 {[%clk 0:02:59]}  a5 {[%clk 0:02:57]} 5. g3 {[%clk 0:02:57]}  Nf6 {[%clk 0:02:56]} 6. Bg2 {[%clk 0:02:56]}  O-O {[%clk 0:02:56]} 7. O-O {[%clk 0:02:56]}  Nbd7 {[%clk 0:02:54]} 8. Qc2 {[%clk 0:02:48]}  c5 {[%clk 0:02:46]} 9. Rd1 {[%clk 0:02:37]}  b6 {[%clk 0:02:34]} 10. Bg5 {[%clk 0:02:35]}  cxd4 {[%clk 0:02:32]} 11. Nxd4 {[%clk 0:02:30]}  Bb7 {[%clk 0:02:32]} 12. cxd5 {[%clk 0:02:27]}  exd5 {[%clk 0:02:29]} 13. a3 {[%clk 0:02:12]}  Bc5 {[%clk 0:02:28]} 14. Nc3 {[%clk 0:02:12]}  h6 {[%clk 0:02:27]} 15. Bxf6 {[%clk 0:02:06]}  Nxf6 {[%clk 0:02:26]} 16. e3 {[%clk 0:02:05]}  Rc8 {[%clk 0:02:22]} 17. Qf5 {[%clk 0:02:01]}  g6 {[%clk 0:02:05]} 18. Qd3 {[%clk 0:01:57]}  Qe7 {[%clk 0:02:00]} 19. Rd2 {[%clk 0:01:56]}  Rfd8 {[%clk 0:01:54]} 20. Rc1 {[%clk 0:01:44]}  Ng4 {[%clk 0:01:43]} 21. Qe2 {[%clk 0:01:32]}  Nf6 {[%clk 0:01:08]} 22. Qd1 {[%clk 0:01:00]}  h5 {[%clk 0:01:00]} 23. Bh3 {[%clk 0:00:57]}  Rb8 {[%clk 0:00:56]} 24. Nb3 {[%clk 0:00:53]}  Bd6 {[%clk 0:00:51]} 25. Bg2 {[%clk 0:00:51]}  Be5 {[%clk 0:00:47]} 26. Rcc2 {[%clk 0:00:39]}  Rbc8 {[%clk 0:00:35]} 27. Nd4 {[%clk 0:00:33]}  h4 {[%clk 0:00:30]} 28. Bf3 {[%clk 0:00:28]}  Kg7 {[%clk 0:00:19]} 29. Nce2 {[%clk 0:00:27]}  hxg3 {[%clk 0:00:15]} 30. hxg3 {[%clk 0:00:27]}  Rc5 {[%clk 0:00:10]} 31. Nf4 {[%clk 0:00:22]}  Rdc8 {[%clk 0:00:05]} 32. Nd3 {[%clk 0:00:21]}  Rxc2 {[%clk 0:00:03]} 33. Rxc2 {[%clk 0:00:21]}  Rxc2 {[%clk 0:00:03]} 34. Qxc2 {[%clk 0:00:21]}  Bd6 {[%clk 0:00:03]} 35. Kg2 {[%clk 0:00:20]}  Ne4 {[%clk 0:00:03]} 36. Bxe4 {[%clk 0:00:20]}  Qxe4+ {[%clk 0:00:02]} 37. Kg1 {[%clk 0:00:19]}  Qe7 {[%clk 0:00:03]} 38. Qc3 {[%clk 0:00:19]}  Kg8 {[%clk 0:00:03]} 39. Nf4 {[%clk 0:00:19]}  Be5 {[%clk 0:00:02]} 40. Kg2 {[%clk 0:00:16]}  Qc5 {[%clk 0:00:03]} 41. Qd2 {[%clk 0:00:16]}  Kg7 {[%clk 0:00:02]} 42. Nd3 {[%clk 0:00:16]}  Qd6 {[%clk 0:00:02]} 43. Nxe5 {[%clk 0:00:15]}  Qxe5 {[%clk 0:00:03]} 44. Qc3 {[%clk 0:00:15]}  Kg8 {[%clk 0:00:02]} 45. Kg1 {[%clk 0:00:15]}  g5 {[%clk 0:00:01]} 46. b4 {[%clk 0:00:14]}  axb4 {[%clk 0:00:02]} 47. Qxb4 {[%clk 0:00:15]}  Qf6 {[%clk 0:00:01]} 48. Qc3 {[%clk 0:00:13]}  Ba6 {[%clk 0:00:01]} 49. Qc7 {[%clk 0:00:12]}  Bc4 {[%clk 0:00:01]} 50. Qc8+ {[%clk 0:00:12]}  Kg7 {[%clk 0:00:01]} 51. Nf5+ {[%clk 0:00:13]}  Kg6 {[%clk 0:00:02]} 52. g4 {[%clk 0:00:13]} 1-0


[Site "https://www.chess.com"]

[Event "Titled Tuesday Blitz April 25 Early 2023"]
[White "Shvedova, Alexandra"]
[Black "Kukhmazov, Arsen"]
[WhiteFideId "54154782"]
[BlackFideId "24108260"]
[WhiteElo "2057"]
[BlackElo "2396"]
[Result "0-1"]
[Round "03"]
[TimeControl "180+2"]
[Date "2023.04.25"]
[WhiteClock "0:00:03"]
[BlackClock "0:00:08"]

1. e4 {[%clk 0:03:00]}  e5 {[%clk 0:02:58]} 2. Nf3 {[%clk 0:03:00]}  Nc6 {[%clk 0:02:59]} 3. Bc4 {[%clk 0:03:00]}  Bc5 {[%clk 0:02:59]} 4. O-O {[%clk 0:03:00]}  Nf6 {[%clk 0:02:55]} 5. d3 {[%clk 0:03:01]}  d6 {[%clk 0:02:50]} 6. a4 {[%clk 0:03:00]}  a5 {[%clk 0:02:49]} 7. c3 {[%clk 0:03:00]}  h6 {[%clk 0:02:44]} 8. Nbd2 {[%clk 0:02:57]}  O-O {[%clk 0:02:44]} 9. h3 {[%clk 0:02:57]}  Be6 {[%clk 0:02:43]} 10. Bb3 {[%clk 0:02:46]}  d5 {[%clk 0:02:38]} 11. exd5 {[%clk 0:02:31]}  Bxd5 {[%clk 0:02:39]} 12. Re1 {[%clk 0:02:15]}  Re8 {[%clk 0:02:36]} 13. Bxd5 {[%clk 0:02:06]}  Qxd5 {[%clk 0:02:37]} 14. Ne4 {[%clk 0:01:59]}  Be7 {[%clk 0:02:24]} 15. Qc2 {[%clk 0:01:37]}  Rad8 {[%clk 0:02:17]} 16. Re3 {[%clk 0:01:12]}  Qe6 {[%clk 0:02:06]} 17. Re1 {[%clk 0:01:05]}  Nd5 {[%clk 0:02:03]} 18. Ng3 {[%clk 0:01:00]}  Qf6 {[%clk 0:01:42]} 19. Be3 {[%clk 0:00:49]}  Qg6 {[%clk 0:01:39]} 20. Rad1 {[%clk 0:00:47]}  f5 {[%clk 0:01:38]} 21. Bc1 {[%clk 0:00:42]}  Bc5 {[%clk 0:01:26]} 22. d4 {[%clk 0:00:36]}  exd4 {[%clk 0:01:18]} 23. Rxe8+ {[%clk 0:00:35]}  Rxe8 {[%clk 0:01:02]} 24. cxd4 {[%clk 0:00:35]}  Bb6 {[%clk 0:00:58]} 25. Qxf5 {[%clk 0:00:35]}  Qxf5 {[%clk 0:00:54]} 26. Nxf5 {[%clk 0:00:36]}  Re2 {[%clk 0:00:54]} 27. Kf1 {[%clk 0:00:29]}  Rc2 {[%clk 0:00:45]} 28. Ne3 {[%clk 0:00:29]}  Nxe3+ {[%clk 0:00:45]} 29. fxe3 {[%clk 0:00:29]}  Rc4 {[%clk 0:00:44]} 30. b3 {[%clk 0:00:28]}  Rc3 {[%clk 0:00:44]} 31. Nd2 {[%clk 0:00:24]}  Rxe3 {[%clk 0:00:37]} 32. d5 {[%clk 0:00:20]}  Nd8 {[%clk 0:00:21]} 33. Bb2 {[%clk 0:00:16]}  Bc5 {[%clk 0:00:16]} 34. Nc4 {[%clk 0:00:10]}  Rxb3 {[%clk 0:00:16]} 35. Bd4 {[%clk 0:00:10]}  Bxd4 {[%clk 0:00:16]} 36. Rxd4 {[%clk 0:00:11]}  Rb4 {[%clk 0:00:16]} 37. d6 {[%clk 0:00:10]}  cxd6 {[%clk 0:00:15]} 38. Rxd6 {[%clk 0:00:09]}  Nf7 {[%clk 0:00:14]} 39. Rd4 {[%clk 0:00:09]}  Kh7 {[%clk 0:00:13]} 40. Rg4 {[%clk 0:00:09]}  h5 {[%clk 0:00:08]} 41. Rh4 {[%clk 0:00:09]}  g5 {[%clk 0:00:07]} 42. Re4 {[%clk 0:00:06]}  Kg7 {[%clk 0:00:07]} 43. Nd2 {[%clk 0:00:05]}  Rxe4 {[%clk 0:00:06]} 44. Nxe4 {[%clk 0:00:06]}  Kg6 {[%clk 0:00:05]} 45. Ke2 {[%clk 0:00:06]}  Kf5 {[%clk 0:00:05]} 46. Nc5 {[%clk 0:00:06]}  Nd6 {[%clk 0:00:06]} 47. Ke3 {[%clk 0:00:05]}  Ke5 {[%clk 0:00:06]} 48. Nd7+ {[%clk 0:00:05]}  Ke6 {[%clk 0:00:05]} 49. Nc5+ {[%clk 0:00:05]}  Kd5 {[%clk 0:00:06]} 50. Nd7 {[%clk 0:00:05]}  Nc4+ {[%clk 0:00:06]} 51. Kf3 {[%clk 0:00:03]}  Ne5+ {[%clk 0:00:07]} 52. Nxe5 {[%clk 0:00:03]}  Kxe5 {[%clk 0:00:08]} 53. g4 {[%clk 0:00:03]}  h4 {[%clk 0:00:08]} 0-1


[Site "https://www.chess.com"]

[Event "Titled Tuesday Blitz April 25 Early 2023"]
[White "Tokman, Ariel"]
[Black "Molina, Roberto Junio Brito"]
[WhiteFideId "117420"]
[BlackFideId "2109450"]
[WhiteElo "2263"]
[BlackElo "2376"]
[Result "0-1"]
[Round "03"]
[TimeControl "180+2"]
[Date "2023.04.25"]
[WhiteClock "0:00:09"]
[BlackClock "0:01:06"]

1. e4 {[%clk 0:03:00]}  c6 {[%clk 0:03:00]} 2. Nf3 {[%clk 0:02:59]}  d5 {[%clk 0:03:00]} 3. Nc3 {[%clk 0:02:59]}  dxe4 {[%clk 0:03:01]} 4. Nxe4 {[%clk 0:02:59]}  Bg4 {[%clk 0:03:01]} 5. Be2 {[%clk 0:02:57]}  Nd7 {[%clk 0:03:01]} 6. O-O {[%clk 0:02:57]}  Ngf6 {[%clk 0:03:00]} 7. Nxf6+ {[%clk 0:02:56]}  Nxf6 {[%clk 0:03:01]} 8. b3 {[%clk 0:02:55]}  e6 {[%clk 0:03:01]} 9. Bb2 {[%clk 0:02:56]}  Bd6 {[%clk 0:03:02]} 10. Re1 {[%clk 0:02:56]}  Qc7 {[%clk 0:03:02]} 11. h3 {[%clk 0:02:56]}  Bh5 {[%clk 0:03:01]} 12. d4 {[%clk 0:02:47]}  O-O {[%clk 0:02:57]} 13. Ne5 {[%clk 0:02:46]}  Bxe2 {[%clk 0:02:56]} 14. Qxe2 {[%clk 0:02:47]}  Rfe8 {[%clk 0:02:55]} 15. a4 {[%clk 0:02:47]}  Nd5 {[%clk 0:02:53]} 16. Nc4 {[%clk 0:02:46]}  Bb4 {[%clk 0:02:50]} 17. Red1 {[%clk 0:02:46]}  Bc3 {[%clk 0:02:48]} 18. Qf3 {[%clk 0:02:32]}  Bxb2 {[%clk 0:02:47]} 19. Nxb2 {[%clk 0:02:33]}  Rad8 {[%clk 0:02:47]} 20. Nc4 {[%clk 0:02:32]}  Qf4 {[%clk 0:02:44]} 21. Qxf4 {[%clk 0:02:26]}  Nxf4 {[%clk 0:02:45]} 22. Kf1 {[%clk 0:02:26]}  g5 {[%clk 0:02:36]} 23. a5 {[%clk 0:02:15]}  f6 {[%clk 0:02:35]} 24. Ne3 {[%clk 0:01:58]}  Rd7 {[%clk 0:02:32]} 25. c3 {[%clk 0:01:54]}  Red8 {[%clk 0:02:31]} 26. Re1 {[%clk 0:01:46]}  Kf7 {[%clk 0:02:31]} 27. g3 {[%clk 0:01:36]}  Nd5 {[%clk 0:02:27]} 28. Rac1 {[%clk 0:01:21]}  h5 {[%clk 0:02:24]} 29. Kg2 {[%clk 0:01:21]}  Rc8 {[%clk 0:02:22]} 30. b4 {[%clk 0:01:10]}  Ne7 {[%clk 0:02:14]} 31. Kf3 {[%clk 0:01:08]}  Rcd8 {[%clk 0:02:12]} 32. Nc4 {[%clk 0:01:05]}  Nd5 {[%clk 0:02:10]} 33. Ne3 {[%clk 0:01:02]}  b6 {[%clk 0:02:07]} 34. Nc4 {[%clk 0:00:50]}  Rc8 {[%clk 0:02:00]} 35. Red1 {[%clk 0:00:44]}  Ke7 {[%clk 0:01:57]} 36. Re1 {[%clk 0:00:27]}  c5 {[%clk 0:01:54]} 37. dxc5 {[%clk 0:00:25]}  bxc5 {[%clk 0:01:52]} 38. b5 {[%clk 0:00:26]}  Rb8 {[%clk 0:01:48]} 39. Na3 {[%clk 0:00:18]}  e5 {[%clk 0:01:26]} 40. Red1 {[%clk 0:00:18]}  Rbd8 {[%clk 0:01:16]} 41. c4 {[%clk 0:00:12]}  e4+ {[%clk 0:01:11]} 42. Kg2 {[%clk 0:00:09]}  Ne3+ {[%clk 0:01:06]} 0-1


[Site "https://www.chess.com"]

[Event "Titled Tuesday Blitz April 25 Early 2023"]
[White "Dimitrov, Atanas"]
[Black "Karas, Marek"]
[WhiteFideId "2901315"]
[BlackFideId "14928558"]
[WhiteElo "2698"]
[BlackElo "2233"]
[Result "1-0"]
[Round "03"]
[TimeControl "180+2"]
[Date "2023.04.25"]
[WhiteClock "0:00:41"]
[BlackClock "0:00:41"]

1. Nf3 {[%clk 0:03:00]}  Nf6 {[%clk 0:02:59]} 2. c4 {[%clk 0:03:00]}  e6 {[%clk 0:02:56]} 3. Nc3 {[%clk 0:03:00]}  Bb4 {[%clk 0:02:53]} 4. Qc2 {[%clk 0:03:00]}  c5 {[%clk 0:02:44]} 5. e3 {[%clk 0:03:01]}  O-O {[%clk 0:02:40]} 6. Be2 {[%clk 0:03:01]}  b6 {[%clk 0:02:37]} 7. O-O {[%clk 0:03:01]}  Bb7 {[%clk 0:02:31]} 8. b3 {[%clk 0:03:00]}  Bxc3 {[%clk 0:02:25]} 9. Qxc3 {[%clk 0:03:00]}  Ne4 {[%clk 0:02:19]} 10. Qc2 {[%clk 0:03:00]}  d5 {[%clk 0:02:14]} 11. d3 {[%clk 0:02:57]}  Nf6 {[%clk 0:02:13]} 12. Bb2 {[%clk 0:02:57]}  Nbd7 {[%clk 0:02:12]} 13. Rfd1 {[%clk 0:02:56]}  Qe7 {[%clk 0:02:12]} 14. d4 {[%clk 0:02:54]}  cxd4 {[%clk 0:02:11]} 15. Nxd4 {[%clk 0:02:54]}  Rac8 {[%clk 0:02:10]} 16. Qd2 {[%clk 0:02:53]}  Ne4 {[%clk 0:02:06]} 17. Qe1 {[%clk 0:02:53]}  Ndf6 {[%clk 0:02:05]} 18. Rac1 {[%clk 0:02:50]}  Rfd8 {[%clk 0:01:58]} 19. h3 {[%clk 0:02:37]}  dxc4 {[%clk 0:01:53]} 20. Bxc4 {[%clk 0:02:38]}  Nc5 {[%clk 0:01:47]} 21. Ne2 {[%clk 0:02:32]}  Rxd1 {[%clk 0:01:42]} 22. Rxd1 {[%clk 0:02:33]}  Rd8 {[%clk 0:01:41]} 23. Nd4 {[%clk 0:02:29]}  h6 {[%clk 0:01:40]} 24. Ba3 {[%clk 0:02:19]}  e5 {[%clk 0:01:30]} 25. Nf5 {[%clk 0:02:17]}  Rxd1 {[%clk 0:01:30]} 26. Qxd1 {[%clk 0:02:17]}  Qd7 {[%clk 0:01:27]} 27. Qxd7 {[%clk 0:01:55]}  Nfxd7 {[%clk 0:01:16]} 28. Nd6 {[%clk 0:01:51]}  Be4 {[%clk 0:00:55]} 29. Bxc5 {[%clk 0:01:32]}  Nxc5 {[%clk 0:00:54]} 30. b4 {[%clk 0:01:25]}  Bg6 {[%clk 0:00:50]} 31. bxc5 {[%clk 0:01:23]}  bxc5 {[%clk 0:00:51]} 32. Nb7 {[%clk 0:01:21]}  Kf8 {[%clk 0:00:50]} 33. Nxc5 {[%clk 0:01:21]}  Ke7 {[%clk 0:00:50]} 34. Bd3 {[%clk 0:01:19]}  f5 {[%clk 0:00:49]} 35. Nb3 {[%clk 0:01:18]}  Kf6 {[%clk 0:00:47]} 36. f3 {[%clk 0:01:17]}  Bf7 {[%clk 0:00:46]} 37. Kf2 {[%clk 0:01:17]}  a5 {[%clk 0:00:45]} 38. Nxa5 {[%clk 0:01:16]}  Bxa2 {[%clk 0:00:45]} 39. Bc4 {[%clk 0:01:16]}  Bb1 {[%clk 0:00:45]} 40. Ke2 {[%clk 0:01:07]}  f4 {[%clk 0:00:43]} 41. e4 {[%clk 0:01:04]}  g5 {[%clk 0:00:43]} 42. Kd2 {[%clk 0:01:04]}  g4 {[%clk 0:00:41]} 43. hxg4 {[%clk 0:00:50]}  Kg5 {[%clk 0:00:39]} 44. Kc1 {[%clk 0:00:49]}  Bxe4 {[%clk 0:00:38]} 45. fxe4 {[%clk 0:00:50]}  Kxg4 {[%clk 0:00:38]} 46. Be2+ {[%clk 0:00:50]}  Kg3 {[%clk 0:00:38]} 47. Bf3 {[%clk 0:00:49]}  h5 {[%clk 0:00:38]} 48. Nc4 {[%clk 0:00:48]}  h4 {[%clk 0:00:37]} 49. Nxe5 {[%clk 0:00:48]}  Kf2 {[%clk 0:00:36]} 50. Kd2 {[%clk 0:00:47]}  Kg3 {[%clk 0:00:36]} 51. Ke2 {[%clk 0:00:46]}  Kh2 {[%clk 0:00:36]} 52. Ng6 {[%clk 0:00:45]}  Kg3 {[%clk 0:00:36]} 53. e5 {[%clk 0:00:44]}  h3 {[%clk 0:00:36]} 54. gxh3 {[%clk 0:00:44]}  Kh2 {[%clk 0:00:37]} 55. e6 {[%clk 0:00:43]}  Kg3 {[%clk 0:00:38]} 56. e7 {[%clk 0:00:43]}  Kh2 {[%clk 0:00:39]} 57. e8=Q {[%clk 0:00:43]}  Kg3 {[%clk 0:00:40]} 58. Qb8 {[%clk 0:00:42]}  Kh2 {[%clk 0:00:41]} 59. Qxf4+ {[%clk 0:00:42]}  Kg1 {[%clk 0:00:41]} 60. Qg3# {[%clk 0:00:41]} 1-0


[Site "https://www.chess.com"]

[Event "Titled Tuesday Blitz April 25 Early 2023"]
[White "Huber, Benedikt"]
[Black "Prohaszka, Peter"]
[WhiteFideId "12923583"]
[BlackFideId "726265"]
[WhiteElo "2199"]
[BlackElo "2626"]
[Result "1-0"]
[Round "03"]
[TimeControl "180+2"]
[Date "2023.04.25"]
[WhiteClock "0:00:27"]
[BlackClock "0:00:03"]

1. d4 {[%clk 0:03:00]}  d5 {[%clk 0:02:55]} 2. Nc3 {[%clk 0:03:01]}  Nf6 {[%clk 0:02:53]} 3. Bf4 {[%clk 0:03:01]}  e6 {[%clk 0:02:48]} 4. Nb5 {[%clk 0:03:00]}  Na6 {[%clk 0:02:42]} 5. e3 {[%clk 0:03:00]}  c6 {[%clk 0:02:40]} 6. Nc3 {[%clk 0:03:00]}  Bd6 {[%clk 0:02:34]} 7. Bxd6 {[%clk 0:02:54]}  Qxd6 {[%clk 0:02:35]} 8. Bxa6 {[%clk 0:02:54]}  bxa6 {[%clk 0:02:35]} 9. Nf3 {[%clk 0:02:52]}  Rb8 {[%clk 0:02:26]} 10. Na4 {[%clk 0:02:50]}  Ne4 {[%clk 0:02:00]} 11. O-O {[%clk 0:02:46]}  c5 {[%clk 0:01:55]} 12. Nd2 {[%clk 0:02:06]}  cxd4 {[%clk 0:01:46]} 13. exd4 {[%clk 0:01:58]}  Nxd2 {[%clk 0:01:21]} 14. Qxd2 {[%clk 0:01:59]}  Qb4 {[%clk 0:01:20]} 15. Qf4 {[%clk 0:01:44]}  Rb5 {[%clk 0:01:10]} 16. b3 {[%clk 0:01:33]}  O-O {[%clk 0:01:10]} 17. c3 {[%clk 0:01:28]}  Qe7 {[%clk 0:01:04]} 18. Nc5 {[%clk 0:01:27]}  e5 {[%clk 0:01:01]} 19. Qe3 {[%clk 0:01:27]}  e4 {[%clk 0:00:59]} 20. f3 {[%clk 0:01:25]}  f5 {[%clk 0:00:58]} 21. fxe4 {[%clk 0:01:25]}  dxe4 {[%clk 0:00:58]} 22. c4 {[%clk 0:01:15]}  Rb6 {[%clk 0:00:58]} 23. Na4 {[%clk 0:01:08]}  Rbf6 {[%clk 0:00:55]} 24. Nc3 {[%clk 0:01:08]}  h6 {[%clk 0:00:42]} 25. Nd5 {[%clk 0:01:06]}  Qd6 {[%clk 0:00:37]} 26. Nxf6+ {[%clk 0:01:05]}  Rxf6 {[%clk 0:00:37]} 27. d5 {[%clk 0:01:03]}  Qe5 {[%clk 0:00:37]} 28. Rad1 {[%clk 0:01:00]}  f4 {[%clk 0:00:36]} 29. Qd4 {[%clk 0:01:01]}  Qf5 {[%clk 0:00:25]} 30. d6 {[%clk 0:00:55]}  Rf7 {[%clk 0:00:25]} 31. c5 {[%clk 0:00:47]}  Bd7 {[%clk 0:00:24]} 32. Qd5 {[%clk 0:00:45]}  e3 {[%clk 0:00:20]} 33. Qxf5 {[%clk 0:00:38]}  Rxf5 {[%clk 0:00:21]} 34. c6 {[%clk 0:00:35]}  e2 {[%clk 0:00:18]} 35. cxd7 {[%clk 0:00:33]}  Rf8 {[%clk 0:00:19]} 36. Rc1 {[%clk 0:00:28]}  exf1=Q+ {[%clk 0:00:15]} 37. Kxf1 {[%clk 0:00:29]}  Rd8 {[%clk 0:00:03]} 38. Rc8 {[%clk 0:00:27]} 1-0


[Site "https://www.chess.com"]

[Event "Titled Tuesday Blitz April 25 Early 2023"]
[White "Goldin, Alexander"]
[Black "Shaik Sumer Arsh"]
[WhiteFideId "2019540"]
[BlackFideId "45020000"]
[WhiteElo "2657"]
[BlackElo "2350"]
[Result "1-0"]
[Round "03"]
[TimeControl "180+2"]
[Date "2023.04.25"]
[WhiteClock "0:00:25"]
[BlackClock "0:00:27"]

1. d4 {[%clk 0:03:00]}  Nf6 {[%clk 0:02:54]} 2. Nf3 {[%clk 0:03:00]}  d5 {[%clk 0:02:52]} 3. c4 {[%clk 0:02:59]}  e6 {[%clk 0:02:52]} 4. Nc3 {[%clk 0:02:58]}  Bb4 {[%clk 0:02:52]} 5. Qb3 {[%clk 0:02:55]}  c5 {[%clk 0:02:44]} 6. cxd5 {[%clk 0:02:53]}  Qxd5 {[%clk 0:02:29]} 7. Qxd5 {[%clk 0:02:36]}  Nxd5 {[%clk 0:02:28]} 8. Bd2 {[%clk 0:02:37]}  cxd4 {[%clk 0:02:19]} 9. Nxd5 {[%clk 0:02:35]}  Bxd2+ {[%clk 0:02:19]} 10. Kxd2 {[%clk 0:02:35]}  exd5 {[%clk 0:02:20]} 11. Nxd4 {[%clk 0:02:33]}  Nc6 {[%clk 0:02:19]} 12. Nb3 {[%clk 0:01:22]}  b6 {[%clk 0:01:46]} 13. e3 {[%clk 0:01:22]}  O-O {[%clk 0:01:43]} 14. Rc1 {[%clk 0:01:21]}  Ne5 {[%clk 0:01:34]} 15. Nd4 {[%clk 0:01:13]}  Bd7 {[%clk 0:01:21]} 16. Ba6 {[%clk 0:01:11]}  Rae8 {[%clk 0:01:10]} 17. Rc7 {[%clk 0:01:05]}  Bf5 {[%clk 0:01:05]} 18. f3 {[%clk 0:01:00]}  Bc8 {[%clk 0:00:58]} 19. Bb5 {[%clk 0:00:59]}  Rd8 {[%clk 0:00:48]} 20. Rxa7 {[%clk 0:00:58]}  Bd7 {[%clk 0:00:46]} 21. Bxd7 {[%clk 0:00:51]}  Rxd7 {[%clk 0:00:46]} 22. Rxd7 {[%clk 0:00:47]}  Nxd7 {[%clk 0:00:47]} 23. Rc1 {[%clk 0:00:46]}  Ne5 {[%clk 0:00:43]} 24. b3 {[%clk 0:00:44]}  g6 {[%clk 0:00:35]} 25. a4 {[%clk 0:00:44]}  h5 {[%clk 0:00:30]} 26. h4 {[%clk 0:00:42]}  Nd7 {[%clk 0:00:25]} 27. Rc7 {[%clk 0:00:40]}  Nc5 {[%clk 0:00:25]} 28. Rc6 {[%clk 0:00:39]}  Rb8 {[%clk 0:00:20]} 29. Rd6 {[%clk 0:00:37]}  Kf8 {[%clk 0:00:17]} 30. Rxd5 {[%clk 0:00:37]}  Ke7 {[%clk 0:00:18]} 31. Nc6+ {[%clk 0:00:35]}  Ke6 {[%clk 0:00:18]} 32. Re5+ {[%clk 0:00:33]}  Kd6 {[%clk 0:00:19]} 33. Nxb8 {[%clk 0:00:33]}  Kxe5 {[%clk 0:00:19]} 34. Kc3 {[%clk 0:00:33]}  Kd5 {[%clk 0:00:19]} 35. Kb4 {[%clk 0:00:28]}  f5 {[%clk 0:00:17]} 36. Kb5 {[%clk 0:00:24]}  Nxb3 {[%clk 0:00:17]} 37. Kxb6 {[%clk 0:00:24]}  Nd2 {[%clk 0:00:16]} 38. a5 {[%clk 0:00:22]}  Nc4+ {[%clk 0:00:17]} 39. Kb5 {[%clk 0:00:22]}  Nxa5 {[%clk 0:00:16]} 40. Kxa5 {[%clk 0:00:22]}  Ke5 {[%clk 0:00:15]} 41. Nc6+ {[%clk 0:00:22]}  Kd5 {[%clk 0:00:15]} 42. Ne7+ {[%clk 0:00:22]}  Ke6 {[%clk 0:00:15]} 43. Nxg6 {[%clk 0:00:22]}  Kf6 {[%clk 0:00:16]} 44. Nf4 {[%clk 0:00:23]}  Ke5 {[%clk 0:00:15]} 45. Nxh5 {[%clk 0:00:23]}  Ke6 {[%clk 0:00:15]} 46. Nf4+ {[%clk 0:00:23]}  Kf6 {[%clk 0:00:16]} 47. h5 {[%clk 0:00:24]}  Kg5 {[%clk 0:00:16]} 48. Kb5 {[%clk 0:00:24]}  Kh6 {[%clk 0:00:16]} 49. Kc5 {[%clk 0:00:25]}  Kg5 {[%clk 0:00:17]} 50. Kd5 {[%clk 0:00:25]}  Kf6 {[%clk 0:00:18]} 51. Kd6 {[%clk 0:00:24]}  Kg5 {[%clk 0:00:19]} 52. Ke5 {[%clk 0:00:25]}  Kh4 {[%clk 0:00:19]} 53. Kxf5 {[%clk 0:00:24]}  Kg3 {[%clk 0:00:20]} 54. h6 {[%clk 0:00:25]}  Kh2 {[%clk 0:00:21]} 55. h7 {[%clk 0:00:25]}  Kg1 {[%clk 0:00:21]} 56. h8=Q {[%clk 0:00:25]}  Kf2 {[%clk 0:00:22]} 57. e4 {[%clk 0:00:25]}  Kg1 {[%clk 0:00:23]} 58. e5 {[%clk 0:00:25]}  Kf2 {[%clk 0:00:24]} 59. e6 {[%clk 0:00:25]}  Kg1 {[%clk 0:00:25]} 60. e7 {[%clk 0:00:26]}  Kf1 {[%clk 0:00:26]} 61. e8=Q {[%clk 0:00:25]}  Kg1 {[%clk 0:00:27]} 62. Qe1# {[%clk 0:00:25]} 1-0


[Site "https://www.chess.com"]

[Event "Titled Tuesday Blitz April 25 Early 2023"]
[White "Seo, Jung Min"]
[Black "Fieberg, Samuel"]
[WhiteFideId "1734687"]
[BlackFideId "12901717"]
[WhiteElo "2468"]
[BlackElo "2483"]
[Result "1-0"]
[Round "03"]
[TimeControl "180+2"]
[Date "2023.04.25"]
[WhiteClock "0:02:02"]
[BlackClock "0:00:53"]

1. d4 {[%clk 0:02:58]}  d5 {[%clk 0:03:00]} 2. c4 {[%clk 0:02:58]}  e6 {[%clk 0:03:00]} 3. Nc3 {[%clk 0:02:54]}  c5 {[%clk 0:03:00]} 4. cxd5 {[%clk 0:02:54]}  exd5 {[%clk 0:03:01]} 5. dxc5 {[%clk 0:02:52]}  d4 {[%clk 0:02:48]} 6. Na4 {[%clk 0:02:51]}  b5 {[%clk 0:02:44]} 7. cxb6 {[%clk 0:02:51]}  axb6 {[%clk 0:02:44]} 8. b3 {[%clk 0:02:50]}  b5 {[%clk 0:02:41]} 9. Nb2 {[%clk 0:02:50]}  Bb4+ {[%clk 0:02:41]} 10. Bd2 {[%clk 0:02:51]}  Bc3 {[%clk 0:02:41]} 11. Bxc3 {[%clk 0:02:45]}  dxc3 {[%clk 0:02:42]} 12. Qxd8+ {[%clk 0:02:45]}  Kxd8 {[%clk 0:02:42]} 13. Nd3 {[%clk 0:02:43]}  Nc6 {[%clk 0:02:41]} 14. e3 {[%clk 0:02:42]}  Nge7 {[%clk 0:02:25]} 15. Nf3 {[%clk 0:02:32]}  Kc7 {[%clk 0:02:16]} 16. Be2 {[%clk 0:02:32]}  b4 {[%clk 0:02:13]} 17. O-O {[%clk 0:02:25]}  f6 {[%clk 0:02:10]} 18. Rfc1 {[%clk 0:02:25]}  Ra3 {[%clk 0:02:07]} 19. Nfe1 {[%clk 0:02:25]}  Bf5 {[%clk 0:01:57]} 20. Nc2 {[%clk 0:02:24]}  Bxd3 {[%clk 0:01:55]} 21. Bxd3 {[%clk 0:02:24]}  Ra5 {[%clk 0:01:50]} 22. a3 {[%clk 0:02:22]}  bxa3 {[%clk 0:01:48]} 23. Rxa3 {[%clk 0:02:18]}  Rha8 {[%clk 0:01:48]} 24. Rxa5 {[%clk 0:02:12]}  Rxa5 {[%clk 0:01:49]} 25. b4 {[%clk 0:02:09]}  Rd5 {[%clk 0:01:33]} 26. Ne1 {[%clk 0:02:05]}  Nxb4 {[%clk 0:01:29]} 27. Rxc3+ {[%clk 0:02:05]}  Kd6 {[%clk 0:01:27]} 28. Kf1 {[%clk 0:02:03]}  Nxd3 {[%clk 0:01:19]} 29. Nxd3 {[%clk 0:02:03]}  Nc6 {[%clk 0:01:15]} 30. Rxc6+ {[%clk 0:02:02]}  Kxc6 {[%clk 0:01:15]} 31. Nb4+ {[%clk 0:02:02]}  Kc5 {[%clk 0:01:15]} 32. Nxd5 {[%clk 0:02:02]}  Kxd5 {[%clk 0:01:16]} 33. Ke2 {[%clk 0:02:03]}  Ke4 {[%clk 0:01:17]} 34. f3+ {[%clk 0:02:03]}  Ke5 {[%clk 0:01:17]} 35. Kd3 {[%clk 0:02:03]}  h5 {[%clk 0:01:17]} 36. h4 {[%clk 0:02:03]}  g6 {[%clk 0:01:14]} 37. g3 {[%clk 0:02:02]}  Kd5 {[%clk 0:01:14]} 38. e4+ {[%clk 0:02:01]}  Ke5 {[%clk 0:01:13]} 39. Ke3 {[%clk 0:02:02]}  f5 {[%clk 0:01:07]} 40. f4+ {[%clk 0:02:01]}  Ke6 {[%clk 0:01:07]} 41. e5 {[%clk 0:02:01]}  Kd5 {[%clk 0:01:07]} 42. Kd3 {[%clk 0:02:01]}  Kc5 {[%clk 0:01:07]} 43. Kc3 {[%clk 0:02:01]}  Kd5 {[%clk 0:01:00]} 44. Kb4 {[%clk 0:02:01]}  Ke6 {[%clk 0:00:57]} 45. Kc5 {[%clk 0:02:01]}  Ke7 {[%clk 0:00:57]} 46. Kd5 {[%clk 0:02:01]}  Kd7 {[%clk 0:00:53]} 47. e6+ {[%clk 0:02:02]}  Ke7 {[%clk 0:00:53]} 48. Ke5 {[%clk 0:02:02]} 1-0


[Site "https://www.chess.com"]